bitfinex/quotes_SOLUSD_20220119
["timestamp","ask_amount","ask_price","bid_price","bid_amount"]
[1642632518540,6.25,136.75,136.72,0.08797202]
[1642632518765,0.51,136.75,136.72,0.08797202]
[1642632518940,0.25,136.75,136.72,0.08797202]
[1642632519140,0.25,136.75,136.73,6.06439994]
[1642632519640,0.25,136.75,136.72,0.08797202]
[1642632520043,6.25,136.75,136.72,0.08797202]
[1642632520740,2.924,136.74,136.72,0.08797202]
[1642632521143,0.25,136.73,136.72,0.08797202]
[1642632521342,3.174,136.73,136.72,0.08797202]
[1642632521641,0.25,136.73,136.72,0.08797202]
[1642632521841,3.174,136.73,136.72,0.08797202]
[1642632522442,3.174,136.73,136.66,2.16015874]
[1642632522842,3.174,136.73,136.66,0.08792743]
[1642632523042,3.174,136.73,136.66,2.16015874]
[1642632523343,0.25,136.73,136.66,2.16015874]
[1642632524343,0.25,136.73,136.66,26.42305874]
[1642632525745,0.25,136.73,136.67,0.25]
[1642632525948,0.25,136.73,136.66,26.42305874]
[1642632526346,0.25,136.74,136.66,26.42305874]
[1642632526549,0.25,136.74,136.67,0.25]
[1642632526748,0.25,136.74,136.66,26.42305874]
[1642632527450,0.25,136.74,136.68,0.08806125]
[1642632527648,6.25,136.74,136.68,0.08806125]
[1642632529951,6.51,136.74,136.68,0.08806125]
[1642632532351,6.51,136.74,136.67,0.33801663]
[1642632532849,29.1864,136.74,136.67,0.33801663]
[1642632535988,6.51,136.74,136.67,0.33801663]
[1642632537585,6.51,136.74,136.69,0.08803894]
[1642632538286,9.434,136.74,136.69,0.08803894]
[1642632539991,6.51,136.74,136.69,0.08803894]
[1642632540488,17.4846,136.74,136.69,0.08803894]
[1642632540889,40.5484,136.74,136.69,0.08803894]
[1642632541690,2.924,136.73,136.69,0.08803894]
[1642632542095,0.25,136.72,136.69,0.08803894]
[1642632542493,2.924,136.73,136.66,24.35089432]
[1642632542693,40.0384,136.74,136.66,24.35089432]
[1642632542694,0.25,136.72,136.66,24.35089432]
[1642632543493,42.9644,136.74,136.66,24.35089432]
[1642632543694,36.9644,136.74,136.67,0.25]
[1642632543992,6.0,136.73,136.67,0.25]
[1642632545295,0.25,136.72,136.67,0.25]
[1642632545695,0.25,136.72,136.66,24.35089432]
[1642632545895,2.926,136.71,136.66,24.35089432]
[1642632546295,0.25,136.7,136.66,24.35089432]
[1642632547297,0.25,136.7,136.66,0.08799432]
[1642632547497,2.926,136.69,136.64,2.07223131]
[1642632547697,0.25,136.68,136.64,2.07223131]
[1642632548897,0.25,136.7,136.64,2.07223131]
[1642632552301,0.25,136.7,136.66,0.08810588]
[1642632552703,0.25,136.71,136.66,0.08810588]
[1642632555806,6.25,136.71,136.66,0.08810588]
[1642632556007,24.3815,136.7,136.66,0.08810588]
[1642632556209,0.25,136.69,136.66,0.08810588]
[1642632557509,0.25,136.69,136.63,8.41029256]
[1642632558110,24.6415,136.7,136.63,8.41029256]
[1642632558309,24.6415,136.7,136.64,2.07223131]
[1642632559207,0.25,136.69,136.64,2.07223131]
[1642632559909,24.6415,136.7,136.65,0.25]
[1642632562311,24.6415,136.7,136.67,0.08808356]
[1642632564715,0.25,136.69,136.67,0.08808356]
[1642632565917,0.25,136.7,136.67,0.08808356]
[1642632566319,28.9981,136.71,136.67,0.08808356]
[1642632567321,28.9981,136.71,136.64,2.16029256]
[1642632567555,22.9981,136.71,136.64,2.16029256]
[1642632567750,22.7481,136.71,136.64,2.16029256]
[1642632568150,22.7481,136.71,136.65,2.07223131]
[1642632568452,22.7481,136.71,136.64,2.16029256]
[1642632569051,22.7481,136.71,136.65,0.25]
[1642632569251,0.25,136.7,136.65,0.25]
[1642632569952,0.25,136.7,136.64,2.16029256]
[1642632571355,0.25,136.7,136.64,0.08806125]
[1642632572554,11.2277,136.7,136.63,2.16033719]
[1642632573560,10.9777,136.7,136.64,2.07223131]
[1642632573959,0.25,136.69,136.64,2.07223131]
[1642632574155,0.25,136.69,136.63,2.16033719]
[1642632574356,0.25,136.69,136.63,2.41033719]
[1642632576360,79.29,136.69,136.63,2.41033719]
[1642632576563,0.25,136.69,136.63,2.41033719]
[1642632576961,6.25,136.69,136.63,2.41033719]
[1642632577360,6.25,136.69,136.65,0.0881282]
[1642632578668,90.2688,136.69,136.65,0.0881282]
[1642632580565,17.2288,136.69,136.65,0.0881282]
[1642632580966,17.4888,136.69,136.65,0.06706207]
[1642632581270,90.5288,136.69,136.65,0.06706207]
[1642632581469,10.9804,136.67,136.65,0.06706207]
[1642632581866,0.25,136.66,136.65,0.06706207]
[1642632582367,0.25,136.66,136.59,2.16031487]
[1642632582567,17.2312,136.66,136.59,2.16031487]
[1642632582769,73.04,136.65,136.59,0.08808356]
[1642632583169,79.29,136.64,136.59,0.08808356]
[1642632583370,73.29,136.64,136.59,0.08808356]
[1642632583773,73.29,136.64,136.59,0.33808356]
[1642632583970,84.2724,136.64,136.59,0.33808356]
[1642632585571,0.25,136.64,136.59,0.33808356]
[1642632585771,24.9003,136.65,136.59,0.33808356]
[1642632587374,24.9003,136.65,136.61,0.0847065]
[1642632587578,25.1603,136.65,136.61,0.0847065]
[1642632592384,25.1603,136.65,136.57,6.33466183]
[1642632596006,98.2003,136.65,136.57,6.33466183]
[1642632597206,98.2003,136.65,136.59,0.08475118]
[1642632600510,6.0,136.64,136.59,0.08475118]
[1642632600711,0.25,136.63,136.59,0.08475118]
[1642632602014,6.25,136.64,136.59,0.08475118]
[1642632602214,6.25,136.64,136.57,6.3347065]
[1642632604223,0.25,136.64,136.57,6.3347065]
[1642632604417,0.25,136.64,136.57,17.3143065]
[1642632604633,24.6503,136.65,136.57,17.5743065]
[1642632604819,15.28074421,136.79,136.57,17.5743065]
[1642632604820,2.928,136.67,136.57,28.1743065]
[1642632605018,22.9205,136.7,136.58,25.46103131]
[1642632605221,22.9205,136.7,136.59,12.92223131]
[1642632605420,22.9205,136.7,136.59,18.92223131]
[1642632605619,22.9205,136.7,136.59,19.18223131]
[1642632605822,1.82712602,136.72,136.6,2.07223131]
[1642632606020,0.26,136.7,136.61,16.9757]
[1642632606219,30.5388,136.71,136.61,17.4857]
[1642632606419,30.2788,136.71,136.61,17.4857]
[1642632606619,30.2788,136.71,136.61,103.19793131]
[1642632606820,6.0,136.71,136.61,103.19793131]
[1642632607019,6.0,136.72,136.61,103.19793131]
[1642632607419,6.0,136.72,136.61,103.28263781]
[1642632607819,6.0,136.72,136.61,30.24263781]
[1642632608020,2.07214821,136.73,136.61,30.24263781]
[1642632608220,0.25,136.72,136.61,30.24263781]
[1642632608621,0.25,136.72,136.62,2.07223131]
[1642632608820,0.25,136.72,136.65,10.9727]
[1642632609226,0.25,136.73,136.66,0.25]
[1642632610527,6.25,136.73,136.66,0.25]
[1642632611228,0.25,136.73,136.66,0.25]
[1642632611632,6.25,136.73,136.66,0.25]
[1642632612227,6.25,136.73,136.68,0.08455023]
[1642632612871,0.25,136.73,136.68,0.08455023]
[1642632615472,24.1562,136.74,136.68,0.08455023]
[1642632615876,0.26,136.74,136.68,0.08455023]
[1642632616310,6.26,136.75,136.68,0.08455023]
[1642632616680,29.6251,136.75,136.68,0.08455023]
[1642632617278,0.25,136.74,136.66,11.55680561]
[1642632617480,3.176,136.74,136.66,11.55680561]
[1642632617977,76.216,136.74,136.66,11.55680561]
[1642632618578,0.25,136.74,136.67,0.25]
[1642632620183,32.2911,136.75,136.67,0.25]
[1642632620383,6.0,136.75,136.67,11.2213]
[1642632620785,6.0,136.75,136.67,11.4813]
[1642632621488,6.0,136.75,136.68,10.6]
[1642632621688,6.0,136.75,136.7,10.9679]
[1642632622089,6.0,136.75,136.71,0.25]
[1642632622490,6.26,136.75,136.71,0.25]
[1642632623088,0.26,136.75,136.71,0.25]
[1642632623290,0.25,136.77,136.69,23.70942792]
[1642632623813,0.25,136.77,136.69,23.96942792]
[1642632624015,0.25,136.77,136.71,10.9682]
[1642632624214,0.25,136.77,136.72,0.25]
[1642632627419,0.25,136.77,136.74,0.08441641]
[1642632632429,0.25,136.77,136.72,0.33437183]
[1642632632834,0.25,136.77,136.72,0.08437183]
[1642632636531,23.394,136.77,136.72,0.08437183]
[1642632637032,6.0,136.76,136.72,0.08437183]
[1642632637233,6.0,136.76,136.7,0.33441641]
[1642632642235,6.0,136.76,136.72,0.084461]
[1642632644037,6.26,136.76,136.72,0.084461]
[1642632647337,6.26,136.76,136.7,0.33441641]
[1642632648540,6.26,136.76,136.7,0.08441641]
[1642632650243,6.26,136.76,136.7,0.33441641]
[1642632652344,6.26,136.76,136.72,0.084461]
[1642632657050,8.33214821,136.76,136.72,0.084461]
[1642632657250,0.25,136.75,136.7,0.33441641]
[1642632658982,0.25,136.75,136.7,0.08441641]
[1642632659582,2.32214821,136.75,136.7,0.08441641]
[1642632659983,26.97394821,136.75,136.7,0.08441641]
[1642632660984,27.23394821,136.75,136.7,0.08441641]
[1642632662287,27.23394821,136.75,136.68,0.334461]
[1642632664888,26.98394821,136.75,136.68,0.334461]
[1642632665088,24.9118,136.75,136.68,0.334461]
[1642632666290,0.25,136.74,136.68,0.334461]
[1642632666688,24.6518,136.75,136.68,0.334461]
[1642632667290,24.6518,136.75,136.7,0.08450561]
[1642632668994,24.9118,136.75,136.7,0.08450561]
[1642632672299,24.9118,136.75,136.68,0.334461]
[1642632672696,6.0,136.74,136.68,0.334461]
[1642632673498,24.6518,136.75,136.68,0.334461]
[1642632673702,24.6518,136.75,136.68,11.305261]
[1642632674500,2.07214821,136.77,136.68,11.305261]
[1642632674700,6.0,136.76,136.68,11.565261]
[1642632676702,6.26,136.76,136.68,11.565261]
[1642632677403,6.26,136.76,136.7,0.08450561]
[1642632678805,6.26,136.76,136.7,0.33450561]
[1642632682306,6.26,136.76,136.72,0.084461]
[1642632683607,6.0,136.76,136.72,0.084461]
[1642632685110,6.26,136.76,136.72,0.084461]
[1642632687116,6.0,136.76,136.72,0.084461]
[1642632687418,6.0,136.76,136.69,36.13541641]
[1642632688115,6.0,136.76,136.7,0.25]
[1642632688314,6.26,136.76,136.7,0.25]
[1642632689117,6.26,136.76,136.7,11.2191]
[1642632689316,6.26,136.76,136.7,11.4791]
[1642632691019,6.26,136.76,136.71,6.0]
[1642632692216,6.26,136.76,136.72,0.25]
[1642632692417,6.26,136.76,136.72,0.334461]
[1642632697223,6.26,136.76,136.74,0.08441641]
[1642632702433,6.26,136.76,136.7,0.33439412]
[1642632704843,6.0,136.76,136.7,0.33439412]
[1642632707162,6.0,136.76,136.72,0.084461]
[1642632708859,6.26,136.76,136.72,0.084461]
[1642632709065,0.25,136.75,136.72,0.084461]
[1642632709262,6.26,136.76,136.72,0.084461]
[1642632710664,0.25,136.75,136.72,0.084461]
[1642632711964,23.7684,136.75,136.72,0.084461]
[1642632712165,23.7684,136.75,136.69,0.25]
[1642632712570,24.0284,136.75,136.69,0.25]
[1642632712966,24.0284,136.75,136.68,10.68441641]
[1642632713166,24.0284,136.75,136.69,0.25]
[1642632717179,24.0284,136.75,136.71,0.0844833]
[1642632722192,24.0284,136.75,136.69,0.3344387]
[1642632727120,24.0284,136.75,136.71,0.0844833]
[1642632730322,23.7784,136.75,136.71,0.0844833]
[1642632731522,0.25,136.74,136.71,0.0844833]
[1642632732123,0.25,136.74,136.69,0.3344387]
[1642632734633,0.25,136.74,136.69,0.0844387]
[1642632737233,0.25,136.74,136.67,6.5944833]
[1642632738440,8.07214821,136.76,136.68,73.04]
[1642632738643,8.07214821,136.76,136.68,23.7604]
[1642632738841,6.0,136.76,136.69,0.25]
[1642632740946,6.26,136.76,136.69,0.25]
[1642632742345,6.26,136.76,136.71,0.0844833]
[1642632746271,2.07214821,136.77,136.71,0.0844833]
[1642632746473,2.07214821,136.78,136.71,0.0844833]
[1642632746671,30.46746262,136.81,136.71,24.7610833]
[1642632746672,2.07214821,136.8,136.71,24.7610833]
[1642632746973,2.07214821,136.8,136.71,106.12331461]
[1642632747174,2.07214821,136.8,136.73,0.0844387]
[1642632747772,6.0,136.79,136.73,0.0844387]
[1642632747973,6.0,136.8,136.73,0.0844387]
[1642632749174,6.26,136.8,136.73,11.0512387]
[1642632749371,6.26,136.8,136.74,0.25]
[1642632751576,0.25,136.79,136.73,11.3112387]
[1642632752277,0.25,136.79,136.76,0.08437183]
[1642632756984,0.25,136.79,136.77,6.06439994]
[1642632757583,0.25,136.79,136.74,0.33432726]
[1642632757985,6.26,136.8,136.74,0.33432726]
[1642632758189,0.25,136.79,136.74,0.33432726]
[1642632760688,6.26,136.8,136.74,0.33432726]
[1642632762189,6.26,136.8,136.76,0.08437183]
[1642632767095,6.26,136.8,136.74,11.56032726]
[1642632768696,0.25,136.79,136.74,11.56032726]
[1642632772122,0.25,136.79,136.76,0.08437183]
[1642632777226,0.25,136.79,136.74,11.56032726]
[1642632782144,0.25,136.79,136.74,11.476]
[1642632784252,6.26,136.8,136.74,11.476]
[1642632784451,6.26,136.8,136.74,11.226]
[1642632785654,0.25,136.79,136.74,11.226]
[1642632786655,6.26,136.8,136.74,11.226]
[1642632786855,6.26,136.8,136.75,0.25]
[1642632790588,6.26,136.8,136.74,11.226]
[1642632790884,0.25,136.79,136.74,11.226]
[1642632792990,6.26,136.8,136.75,0.25]
[1642632793792,0.25,136.79,136.75,0.25]
[1642632800525,0.25,136.79,136.74,11.226]
[1642632801126,6.26,136.8,136.74,11.226]
[1642632802726,6.26,136.8,136.75,0.25]
[1642632802928,0.25,136.79,136.75,0.25]
[1642632803731,23.3137,136.79,136.73,29.5472]
[1642632804029,6.0,136.78,136.73,29.5472]
[1642632804229,6.0,136.78,136.73,29.8072]
[1642632808833,6.0,136.78,136.73,40.7736]
[1642632809132,6.0,136.78,136.73,40.5136]
[1642632809332,6.0,136.78,136.73,34.5136]
[1642632810535,6.0,136.78,136.73,34.7736]
[1642632813138,6.26,136.78,136.73,34.7736]
[1642632816042,6.26,136.78,136.73,23.8072]
[1642632819049,0.26,136.78,136.73,23.8072]
[1642632819247,0.25,136.79,136.73,23.8072]
[1642632825852,0.25,136.79,136.73,34.774]
[1642632843107,8.33214821,136.8,136.73,34.774]
[1642632844008,2.33214821,136.8,136.73,34.774]
[1642632844308,0.25,136.79,136.73,34.774]
[1642632845145,0.25,136.8,136.73,34.774]
[1642632845737,0.25,136.8,136.73,34.274]
[1642632847237,0.25,136.8,136.74,0.25]
[1642632852546,26.74344821,136.81,136.74,11.2159]
[1642632852748,24.4113,136.81,136.74,11.4759]
[1642632853544,2.07214821,136.83,136.74,11.4759]
[1642632853744,6.0,136.82,136.75,33.7932]
[1642632853944,6.0,136.82,136.77,10.963]
[1642632854346,97.82120887,136.84,136.78,0.25]
[1642632855946,97.82120887,136.84,136.79,10.9615]
[1642632856146,97.82120887,136.84,136.79,13.8845]
[1642632856346,97.82120887,136.84,136.8,0.25]
[1642632857548,97.82120887,136.84,136.79,0.25]
[1642632858146,97.82120887,136.84,136.8,10.9612]
[1642632858347,97.82120887,136.84,136.8,11.2212]
[1642632858548,97.82120887,136.84,136.81,0.25]
[1642632859849,97.82120887,136.84,136.82,6.06439994]
[1642632860051,97.82120887,136.84,136.81,0.25]
[1642632860851,97.82120887,136.84,136.8,11.2212]
[1642632861051,97.82120887,136.84,136.81,0.25]
[1642632865759,97.82120887,136.84,136.82,6.06439994]
[1642632866164,97.82120887,136.84,136.83,0.25]
[1642632867164,47.1837,136.92,136.83,11.2083]
[1642632867667,47.1837,136.92,136.83,11.4683]
[1642632868964,47.4437,136.92,136.83,11.4683]
[1642632871068,47.4437,136.92,136.84,6.0]
[1642632871268,47.4437,136.92,136.85,0.25]
[1642632871671,0.25,136.91,136.85,0.25]
[1642632872071,0.25,136.91,136.84,0.26]
[1642632872272,0.25,136.91,136.83,11.2183]
[1642632872469,47.4437,136.92,136.83,11.2183]
[1642632873073,0.25,136.91,136.83,11.2183]
[1642632873271,0.25,136.91,136.84,0.25]
[1642632874271,0.25,136.91,136.83,11.2183]
[1642632875575,0.25,136.91,136.84,0.25]
[1642632875775,0.25,136.91,136.84,23.3443]
[1642632876173,0.25,136.91,136.84,23.6043]
[1642632877074,47.4437,136.92,136.84,23.6043]
[1642632877274,0.25,136.91,136.84,34.5623]
[1642632879199,47.4437,136.92,136.84,34.5623]
[1642632882303,6.0,136.91,136.84,34.5623]
[1642632883805,5.97941553,136.91,136.84,34.5623]
[1642632885108,6.17597866,136.91,136.84,34.5623]
[1642632894515,6.17597866,136.91,136.84,34.3123]
[1642632895715,6.17597866,136.91,136.85,0.25]
[1642632900917,6.17597866,136.91,136.85,11.2072]
[1642632901120,6.17597866,136.91,136.85,11.4672]
[1642632909428,8.24812687,136.91,136.85,0.51]
[1642632909733,8.24812687,136.91,136.85,0.25]
[1642632910128,6.17597866,136.91,136.85,0.25]
[1642632911733,8.24812687,136.91,136.85,0.25]
[1642632914133,7.98812687,136.91,136.85,0.25]
[1642632916936,8.24812687,136.91,136.85,0.25]
[1642632921777,6.17597866,136.91,136.85,0.25]
[1642632924279,6.17597866,136.91,136.85,11.207]
[1642632924779,6.17597866,136.91,136.85,11.467]
[1642632925279,5.91597866,136.91,136.85,11.467]
[1642632929980,5.91597866,136.91,136.85,11.5625]
[1642632943588,5.91597866,136.91,136.85,11.3125]
[1642632943790,0.25,136.9,136.85,11.3125]
[1642632944988,0.25,136.9,136.86,0.25]
[1642632949391,5.91597866,136.91,136.86,0.25]
[1642632960840,5.91597866,136.91,136.85,11.3125]
[1642632962343,5.91597866,136.91,136.86,0.25]
[1642632965243,5.91597866,136.91,136.86,10.9563]
[1642632965642,5.91597866,136.91,136.87,0.25]
[1642632971258,5.91597866,136.91,136.86,11.2163]
[1642632972687,5.91597866,136.91,136.87,0.25]
[1642632976794,0.25,136.9,136.86,11.2163]
[1642632976991,5.91597866,136.91,136.87,0.25]
[1642632977192,2.07214821,136.92,136.87,6.25]
[1642632977391,2.07214821,136.93,136.87,17.2053]
[1642632977591,2.07214821,136.94,136.87,41.2187]
[1642632980695,2.33214821,136.94,136.87,41.2187]
[1642632982096,2.07214821,136.94,136.87,41.2187]
[1642632982296,92.54363571,136.95,136.87,41.2187]
[1642632982495,8.07214821,136.94,136.87,41.2187]
[1642632982895,6.0,136.94,136.87,41.2187]
[1642632983095,8.07214821,136.94,136.87,41.2187]
[1642632983495,6.0,136.94,136.87,41.2187]
[1642632984296,6.0,136.94,136.87,17.2053]
[1642632984598,6.0,136.94,136.87,11.2053]
[1642632984797,8.07214821,136.94,136.87,11.2053]
[1642632985697,8.07214821,136.94,136.87,11.4653]
[1642632986698,6.0,136.94,136.89,10.9534]
[1642632987202,6.0,136.94,136.9,0.25]
[1642632993733,6.0,136.94,136.9,11.2023]
[1642632994135,6.0,136.94,136.9,11.4623]
[1642632994335,90.4714875,136.95,136.9,11.4623]
[1642632994536,90.4714875,136.95,136.91,6.0]
[1642632994736,90.4714875,136.95,136.92,0.25]
[1642632994939,90.4714875,136.95,136.93,3.03219997]
[1642632995137,2.07214821,136.99,136.93,6.06439994]
[1642632995443,2.07214821,136.99,136.94,0.25]
[1642632995637,6.0,136.98,136.94,0.25]
[1642632995837,2.07214821,137.0,136.94,0.25]
[1642632996437,2.07214821,137.0,136.93,0.25]
[1642632996637,208.99576015,137.03,136.93,0.25]
[1642632996638,2.07214821,137.01,136.93,79.29]
[1642632996838,2.07214821,137.02,136.94,27.4768]
[1642632997039,2.07214821,137.02,136.95,6.0]
[1642632997245,25.05744821,137.02,136.95,6.51]
[1642632997446,25.05744821,137.02,136.95,11.4576]
[1642632997641,22.9853,137.02,136.95,11.4576]
[1642632997840,170.61699753,137.03,136.95,11.4576]
[1642632998040,6.0,137.02,136.95,11.4576]
[1642632998740,6.26,137.02,136.95,11.4576]
[1642632999544,6.0,137.01,136.95,11.4576]
[1642632999745,6.0,137.04,136.95,11.4576]
[1642633000347,6.26,137.05,136.95,11.4576]
[1642633001152,22.6169,137.04,136.96,113.2638]
[1642633001349,24.1888,137.06,136.96,116.1828]
[1642633001553,24.1888,137.06,136.97,0.25]
[1642633001749,0.25,137.05,136.97,0.25]
[1642633002850,25.1663,137.05,136.97,0.25]
[1642633003049,25.1663,137.05,136.97,11.1958]
[1642633003249,25.1663,137.05,136.97,11.4558]
[1642633003655,25.1663,137.05,136.97,0.51]
[1642633004052,25.1663,137.05,136.97,0.25]
[1642633005154,25.4263,137.05,136.97,0.25]
[1642633006964,36.3751,137.05,136.97,0.25]
[1642633007162,6.0,137.04,136.97,0.25]
[1642633007565,24.2804,137.03,136.97,0.25]
[1642633007963,6.0,137.02,136.97,0.25]
[1642633008167,5.5,137.02,136.97,0.25]
[1642633009773,35.2307,137.03,136.97,0.25]
[1642633010803,35.2307,137.03,136.96,6.26]
[1642633011208,35.4907,137.03,136.96,0.26]
[1642633011610,35.2307,137.03,136.94,34.0624]
[1642633011805,35.2307,137.03,136.94,23.4624]
[1642633012006,35.2307,137.03,136.95,6.0]
[1642633012204,35.2307,137.03,136.95,6.51]
[1642633013005,35.4907,137.03,136.95,0.51]
[1642633013205,35.4907,137.03,136.95,0.25]
[1642633014505,35.4907,137.03,136.95,6.25]
[1642633014706,35.4907,137.03,136.95,6.51]
[1642633015311,11.4603,137.03,136.96,73.04]
[1642633015509,2.919,137.05,136.97,6.25]
[1642633015808,2.919,137.05,136.98,73.04]
[1642633016008,2.919,137.05,136.99,6.0]
[1642633016213,2.919,137.05,136.99,79.55]
[1642633017011,2.919,137.05,136.99,90.4947]
[1642633018813,2.919,137.05,136.99,101.0947]
[1642633019415,2.919,137.05,136.99,102.49934665]
[1642633020117,2.919,137.05,136.99,102.24934665]
[1642633021616,2.919,137.05,137.0,0.25]
[1642633021814,76.53512549,137.08,137.0,87.1526]
[1642633022017,76.03512549,137.08,137.01,6.0]
[1642633022217,76.03512549,137.08,137.02,0.25]
[1642633032226,76.03512549,137.08,137.01,17.2033]
[1642633033229,24.88264821,137.1,137.01,17.2033]
[1642633033432,0.25,137.09,137.01,17.2033]
[1642633033629,0.25,137.09,137.02,0.25]
[1642633038668,24.88264821,137.1,137.02,0.25]
[1642633040268,0.25,137.09,137.02,0.25]
[1642633041071,24.89264821,137.1,137.02,0.25]
[1642633042769,2.07214821,137.09,137.02,0.25]
[1642633044772,2.07214821,137.08,137.02,0.25]
[1642633045171,2.33214821,137.09,137.02,0.25]
[1642633045571,2.07214821,137.08,137.02,0.25]
[1642633050177,2.33214821,137.08,137.02,0.25]
[1642633051480,2.33214821,137.08,137.02,3.168]
[1642633051878,2.33214821,137.08,137.02,3.428]
[1642633052881,2.33214821,137.08,137.02,0.51]
[1642633053282,2.33214821,137.08,137.02,0.25]
[1642633056382,2.33214821,137.08,137.01,17.2033]
[1642633058789,2.07214821,137.08,137.02,0.25]
[1642633059388,2.07214821,137.09,137.02,0.25]
[1642633059587,2.07214821,137.08,137.02,0.25]
[1642633059789,2.07214821,137.09,137.02,24.6024]
[1642633059991,2.07214821,137.08,137.02,24.6024]
[1642633060189,2.07214821,137.09,137.03,6.0]
[1642633060592,2.07214821,137.09,137.04,0.25]
[1642633060991,2.07214821,137.08,137.04,0.25]
[1642633061793,2.07214821,137.08,137.03,0.25]
[1642633063024,2.07214821,137.09,137.03,0.25]
[1642633063624,2.07214821,137.08,137.03,0.25]
[1642633064025,2.07214821,137.08,137.05,10.0]
[1642633064227,2.07214821,137.08,137.06,6.06439994]
[1642633065628,2.07214821,137.08,137.05,10.0]
[1642633066029,2.33214821,137.08,137.05,10.0]
[1642633066933,0.26,137.08,137.05,10.0]
[1642633067128,2.33214821,137.08,137.05,10.0]
[1642633071130,0.26,137.08,137.05,10.0]
[1642633071332,2.07214821,137.09,137.05,10.0]
[1642633071530,2.07214821,137.09,137.06,0.25]
[1642633071828,22.5605,137.1,137.05,10.0]
[1642633071829,2.07214821,137.08,137.05,10.0]
[1642633072031,2.07214821,137.08,137.06,6.06439994]
[1642633073032,2.07214821,137.09,137.06,6.06439994]
[1642633073533,2.07214821,137.08,137.06,6.06439994]
[1642633075134,2.07214821,137.09,137.06,6.06439994]
[1642633075334,2.07214821,137.08,137.06,6.06439994]
[1642633077136,2.07214821,137.09,137.06,6.06439994]
[1642633078238,2.07214821,137.08,137.06,6.06439994]
[1642633079737,2.33214821,137.08,137.06,6.06439994]
[1642633080344,2.33214821,137.08,137.07,10.0]
[1642633080546,2.23664821,137.08,137.07,10.0]
[1642633080947,2.23664821,137.08,137.07,16.06439994]
[1642633081570,1.97664821,137.08,137.07,16.06439994]
[1642633081973,22.5605,137.1,137.07,16.06439994]
[1642633083171,22.8205,137.1,137.07,16.06439994]
[1642633083673,22.8205,137.1,137.07,10.0]
[1642633087980,22.8205,137.1,137.08,6.06439994]
[1642633088178,0.26,137.1,137.08,6.06439994]
[1642633088578,6.25,137.11,137.08,6.06439994]
[1642633089679,6.25,137.11,137.07,10.0]
[1642633089880,10.39446262,137.11,137.07,10.0]
[1642633090483,6.25,137.11,137.07,10.0]
[1642633092182,10.65446262,137.11,137.07,10.0]
[1642633092482,6.51,137.11,137.07,10.0]
[1642633098387,6.26,137.11,137.07,10.0]
[1642633100689,10.40446262,137.11,137.07,10.0]
[1642633101093,17.204,137.11,137.07,10.0]
[1642633101495,0.25,137.1,137.07,10.0]
[1642633102096,0.25,137.1,137.07,9.67097132]
[1642633109632,0.25,137.1,137.08,3.03219997]
[1642633109835,0.25,137.1,137.07,9.67097132]
[1642633113836,0.25,137.1,137.08,6.06439994]
[1642633115038,10.40446262,137.11,137.08,6.06439994]
[1642633115242,6.26,137.11,137.08,6.06439994]
[1642633123655,6.26,137.11,137.07,9.67097132]
[1642633125458,17.2041,137.11,137.07,9.67097132]
[1642633132687,0.25,137.1,137.07,9.67097132]
[1642633133591,17.2041,137.11,137.07,9.67097132]